Cogmind - Beta 16.1 @@@ ROGUE MODE // 2026.04.15 @ 22:40:39 Player: shreknel Result: Destroyed by G-34 Mercenary with Small Laser Performance ------------- Evolutions (1) 500 Regions Visited (3) 600 Robots Destroyed (47) 235 Value Destroyed (1248) 1248 Prototype IDs (1) 20 Alien Tech Used (0) 0 Bonus (0) 0 TOTAL SCORE: 2603 Bonus ------- None Cogmind --------- Core Integrity 0/400 Matter 263/300 Energy 91/100 System Corruption 1% Temperature Cool (62) Movement Treading (160) Location -9/Storage Parts ------- > --- POWER (1) -------- (None) > --- PROPULSION (4) --- Light Treads > --- UTILITY (2) ------ Machine Analyzer Signal Interpreter > --- WEAPON (2) ------- Advanced Beam Cannon Heavy Assault Rifle > --- INVENTORY (5) ---- Heat Sink ECM Suite Beam Rifle EMP Blaster Peak State ------------ > --- POWER ------------ Ion Engine > --- PROPULSION ------- Compact Wheel Compact Wheel Compact Wheel Compact Wheel > --- UTILITY ---------- Small Storage Unit Signal Interpreter > --- WEAPON ----------- EMP Blaster EMP Blaster > --- INVENTORY -------- Light Treads Wheel Compact Wheel Compact Wheel Flight Unit Small Storage Unit Propulsion Shielding Hardlight Generator [Rating: 12] Favorites ----------- Power Ion Engine Engine Ion Engine Propulsion Compact Wheel Treads Light Treads Wheel Compact Wheel Hover Unit Improved Hover Unit Flight Unit Flight Unit Utility Small Storage Unit Storage Small Storage Unit Processor Signal Interpreter Protection Propulsion Shielding Weapon EMP Blaster Energy Gun Medium Laser Energy Cannon Advanced Beam Cannon Ballistic Gun Light Assault Rifle Launcher EMP Blaster Build | -11 -10 -9 -9 ------- Run | Yrd Mat Mat Sto Slots Evolved 2 | . . 2 . Power . | . . . . Propulsion 2 | . . 2 . Utility . | . . . . Weapon . | . . . . Parts Attached 37 | 6 13 10 8 Power 5 | 1 3 1 . Engine 5 | 1 3 1 . Core . | . . . . Reactor . | . . . . Propulsion 14 | 2 5 4 3 Treads 1 | . . . 1 Leg . | . . . . Wheel 9 | 2 5 2 . Hover 1 | . . 1 . Flight 3 | . . 1 2 Utility 6 | 1 2 2 1 Device . | . . . . Storage 3 | 1 . 2 . Processor 2 | . 1 . 1 Hackware . | . . . . Protection 1 | . 1 . . Artifact . | . . . . Weapon 12 | 2 3 3 4 Energy Gun 4 | . 2 1 1 Energy Cannon 3 | . 1 . 2 Ballistic Gun 3 | 2 . . 1 Ballistic Cannon . | . . . . Launcher 2 | . . 2 . Special Weapon . | . . . . Impact Weapon . | . . . . Slashing Weapon . | . . . . Piercing Weapon . | . . . . Special Melee Weapon . | . . . . Unidentified Prototypes 1 | . . . 1 Parts Lost 19 | . 5 8 6 Power 4 | . 2 2 . Propulsion 11 | . 2 4 5 Utility . | . . . . Weapon 4 | . 1 2 1 Highest Loss Streak 3 | . 3 3 3 To Critical Strikes . | . . . . Average Backups 6 | 3 7 7 6 Power . | . . . . Propulsion 4 | 2 4 4 . Utility 1 | . . 2 2 Weapon 1 | . 1 . 2 Tool/Special . | . . . . Unused Backups 15 | . 3 4 8 Power 1 | . 1 . . Propulsion 6 | . 2 4 . Utility 4 | . . . 4 Weapon 4 | . . . 4 Tool/Special . | . . . . Average Slot Usage (%) 86 | . 94 89 61 Engine 8 | . 11 9 . Wheel 27 | . 26 35 8 Flight 2 | . . 2 9 Storage 11 | . 14 11 6 Processor 7 | . . 11 14 Protection 5 | . 13 . . Energy Gun 8 | . 11 6 3 Energy Cannon 2 | . 1 . 12 Ballistic Gun 6 | . 14 . 3 Launcher 5 | . . 12 1 Peak Build Rating 12 | 6 7 12 12 Average Rating 8 | 4 6 9 9 On Entrance 5 | . 6 7 9 Avg Prop Armor Cover (%) 4 | . . 4 5 Naked Turns . | . . . . Heaviest Build 23 | 11 14 23 18 Greatest Support 64 | 26 32 64 32 Greatest Overweight (x) 2 | . 2 . 1 Average Overweight (x) . | . . . . Largest Inventory Capacity 10 | 8 8 10 10 Average Capacity 8 | 7 8 8 7 Most Carried 10 | 6 8 10 9 Average Carried 6 | 3 7 7 5 Final Capacity 10 | 8 8 10 5 Final Carried 10 | 6 8 10 4 Class Distribution -------------------- 86% | Mutant 13% | Scavenger-Mutant Dominant Class ---------------- Mutant | -10/Materials Mutant | -9/Materials Mutant | -9/Storage Resources | -11 -10 -9 -9 ----------- Run | Yrd Mat Mat Sto Matter Collected 792 | 200 275 268 49 Remotely . | . . . . Salvage Created 1664 | . 477 931 256 Parts 109 | . 29 66 14 Haulers Intercepted . | . . . . Recyclers Shooed . | . . . . Parts Field Recycled . | . . . . Retrieved Matter . | . . . . Parts Self-Destructed . | . . . . Prevented . | . . . . Parts Restored . | . . . . Kills | -11 -10 -9 -9 ------- Run | Yrd Mat Mat Sto Combat Hostiles Destroyed 32 | . 10 17 5 Guns 16 | . 10 5 1 Cannons 4 | . . . 4 AOE 12 | . . 12 . Classes Destroyed 8 | . 5 3 . Worker 5 | . 1 4 . Builder 2 | . . 2 . Recycler 3 | . 2 1 . Operator 2 | . . 2 . Watcher 3 | . 1 2 . Swarmer 5 | . 3 2 . Grunt 19 | . 7 11 1 Sentry 8 | . . 4 4 Best Kill Streak 10 | . 5 10 2 Combat Bots Only 5 | . 5 3 2 Max Kills in Single Turn 3 | . 2 3 1 Gunslinging 1 | . 1 . . Exploded 2 | . . 2 . Melee . | . . . . Uniques/NPCs Destroyed . | . . . . Combat | -11 -10 -9 -9 -------- Run | Yrd Mat Mat Sto Hostile Shots Fired 204 | . 74 68 62 Missed 49 | . 13 22 14 Hits 155 | . 61 46 48 Projectile 155 | . 61 46 48 Critical Strikes 4 | . . 1 3 Damage Taken 2025 | . 684 655 686 Core 579 | . 172 151 256 Absorbed by Shields . | . . . . Redirected to Shielding 42 | . 42 . . Core Remaining (%) 65 | 100 31 . . Volleys Fired 123 | . 58 43 22 Largest 2 | . 2 2 2 Hottest 136 | . 110 105 136 Shots Fired 227 | . 107 78 42 Gun 164 | . 106 45 13 Cannon 30 | . 1 . 29 Launcher 33 | . . 33 . Special . | . . . . Kinetic 65 | . 61 . 4 Thermal 129 | . 46 45 38 Explosive . | . . . . Electromagnetic 33 | . . 33 . Robot Hit Streak 33 | . 33 20 5 Robot Miss Streak 4 | . 4 3 2 Penetration Max . | . . . . Secondary Targets 4 | . 3 1 . Max Gunslinging Chain 1 | . 1 1 . Shots Hit Robots 153 | . 77 48 28 Core Hits 73 | . 25 41 7 Critical Kills . | . . . . Critical Parts Destroyed . | . . . . Critical Strikes 2 | . 1 1 . Burn 2 | . 1 1 . Melee Attacks . | . . . . Impact . | . . . . Slashing . | . . . . Piercing . | . . . . Sneak Attacks . | . . . . Combat Hostiles . | . . . . Follow-up Attacks . | . . . . Damage Inflicted 2707 | . 786 1393 528 Guns 1309 | . 768 424 117 Cannons 428 | . 17 . 411 Explosions 969 | . . 969 . Melee . | . . . . Ramming 1 | . 1 . . Kinetic 461 | . 430 . 31 Thermal 1446 | . 355 594 497 Explosive . | . . . . Electromagnetic 799 | . . 799 . Impact . | . . . . Slashing . | . . . . Piercing . | . . . . Highest Corruption 1 | . . 1 1 Average Corruption 1 | . . 1 1 Corruption Purged . | . . . . Corruption Blocked . | . . . . Effects 3 | . . 1 2 Heat Flow Errors 1 | . . . 1 Parts Rejected 1 | . . . 1 Misfires 1 | . . 1 . Overload Shots . | . . . . Overflow Damage 3 | . . 3 . Projectiles . | . . . . Explosions 3 | . . 3 . Melee . | . . . . Knockbacks . | . . . . Impact . | . . . . Kinetic . | . . . . Secondary . | . . . . Self-Inflicted Damage 97 | . . 97 . Shots 7 | . . 7 . Rammed 1 | . 1 . . Targets Rammed 1 | . 1 . . Kicked . | . . . . Crushed . | . . . . Highest Temperature 348 | . 132 348 347 Average Temperature 93 | . 39 106 148 Received Heat Transfer 876 | . 333 258 285 Effects 1 | . . . 1 Energy Bleed 1 | . . . 1 Siege Activations . | . . . . Martial Activations . | . . . . Shielding Activations . | . . . . Robots Disrupted . | . . . . Combat Hostiles . | . . . . Robots Corrupted . | . . . . Combat Hostiles . | . . . . Parts Fried 1 | . . 1 . Impact Corruptions . | . . . . Robots Melted . | . . . . Combat Hostiles . | . . . . Parts Melted 8 | . 1 4 3 Heat Transferred 3390 | . 1075 1353 962 Parts Sabotaged . | . . . . Parts Stolen . | . . . . Parts Stripped . | . . . . Power Chain Reactions 10 | . . 10 . Alert | -11 -10 -9 -9 ------- Run | Yrd Mat Mat Sto Maximum Alert Level 1 | . . 1 . Low Security (%) 89 | 100 100 75 100 Level 1 10 | . . 24 . Level 2 . | . . . . Level 3 . | . . . . Level 4 . | . . . . Level 5 . | . . . . High Security . | . . . . Max Security . | . . . . Peak Influence 282 | . 107 282 128 Initial 118 | . . 16 118 Average 90 | . 52 127 98 Influence Increases 1128 | . 310 652 166 Destroy 0b10 Robot/C 640 | . 200 340 100 Destroy 0b10 Robot/NC 75 | . 20 55 . Destroy Leader 186 | . 32 104 50 Successful Hack 13 | . 13 . . Disable Machine 60 | . . 60 . Destroy Structure 19 | . . 18 1 Lose Combat Pursuer 135 | . 45 75 15 Influence Decreases 1034 | . 269 412 353 Entered New Map 188 | . . 25 163 Time Decay 656 | . 219 307 130 Lost Part 190 | . 50 80 60 Squads Dispatched 8 | . 1 6 1 Investigation 2 | . . 1 1 Extermination . | . . . . Reinforcement 6 | . 1 5 . Assault . | . . . . Garrison . | . . . . Intercept . | . . . . Searches Triggered . | . . . . Construction Impeded 1 | . . 1 . Haulers Reinforced . | . . . . Active Scanning Responses . | . . . . Cargo Convoy Interrupts . | . . . . Stealth | -11 -10 -9 -9 --------- Run | Yrd Mat Mat Sto Distress Signals 3 | . 1 2 . Communications Jammed . | . . . . Distress Signals . | . . . . Times Spotted 60 | . 21 33 6 Peak Tracking Total 8 | . 8 5 3 Tactical Retreats 8 | . 2 5 1 Traps | -11 -10 -9 -9 ------- Run | Yrd Mat Mat Sto Traps Triggered 5 | . 4 1 . Indirectly . | . . . . Trap Hack Attempts . | . . . . Triggered . | . . . . Disarmed . | . . . . Reprogrammed . | . . . . Reused . | . . . . Traps Extracted . | . . . . Installed . | . . . . Triggered . | . . . . Machines | -11 -10 -9 -9 ---------- Run | Yrd Mat Mat Sto Machines Disabled 4 | . . 4 . Max in Single Turn 1 | . . 1 . Garrison Access 1 | . . . 1 Machines Repaired . | . . . . Machines Dismantled . | . . . . Machines Sabotaged . | . . . . Overloaded Fab Kills . | . . . . Hacking | -11 -10 -9 -9 --------- Run | Yrd Mat Mat Sto Machines Accessed 10 | . 4 3 3 Terminals 8 | . 4 3 1 Fabricators . | . . . . Repair Stations . | . . . . Recycling Units 1 | . . . 1 Scanalyzers . | . . . . Garrison Access 1 | . . . 1 Total Hacks 16 | . 4 7 5 Successful 10 | . 4 3 3 Failed 6 | . . 4 2 Catastrophic 1 | . . . 1 Database Lockouts . | . . . . Manual . | . . . . Terminals 13 | . 4 7 2 Fabricators . | . . . . Repair Stations . | . . . . Recycling Units 2 | . . . 2 Scanalyzers . | . . . . Garrison Access 1 | . . . 1 Terminal Hacks 7 | . 4 3 . Robot Analysis 1 | . 1 . . Alert Level 1 | . 1 . . Locate Traps 2 | . 1 1 . Recall Investigation 1 | . . 1 . Zone Layout 2 | . 1 1 . Fabricator Hacks . | . . . . Repair Station Hacks . | . . . . Recycling Unit Hacks 2 | . . . 2 Report Inventory 1 | . . . 1 Retrieve Components 1 | . . . 1 Scanalyzer . | . . . . Garrison Access Hacks 1 | . . . 1 Seal Access 1 | . . . 1 Unauthorized Hacks . | . . . . Terminals . | . . . . Fabricators . | . . . . Repair Stations . | . . . . Recycling Units . | . . . . Scanalyzers . | . . . . Garrison Access . | . . . . Data Cores Recovered . | . . . . Used . | . . . . Hacking Detections 3 | . . 1 2 Full Trace Events 1 | . . . 1 Feedback Events . | . . . . Feedback Blocked . | . . . . Robot Schematics Acquired . | . . . . Robots Built . | . . . . Authchips . | . . . . Time . | . . . . Total Robot Build Rating . | . . . . Part Schematics Acquired . | . . . . Parts Built . | . . . . Authchips . | . . . . Time . | . . . . Total Part Build Rating . | . . . . Part Studies Acquired . | . . . . Parts Repaired . | . . . . Time . | . . . . Parts Recycled . | . . . . Recycled Matter . | . . . . Retrieved Matter . | . . . . Retrieved Components 4 | . . . 4 Parts Scanalyzed . | . . . . Part Schematics Acquired . | . . . . Parts Damaged . | . . . . Bothacking | -11 -10 -9 -9 ------------ Run | Yrd Mat Mat Sto Used RIF Installer . | . . . . Robots Hacked . | . . . . Non-combat . | . . . . Combat . | . . . . Robot Hacks Applied . | . . . . Relay Couplers Released 2 | . . . 2 Machine Destruction 2 | . . . 2 Fabnet Peak Effective % . | . . . . Robots Rewired . | . . . . Allies Hacked . | . . . . Hacks Repelled . | . . . . Allies | -11 -10 -9 -9 -------- Run | Yrd Mat Mat Sto Total Allies . | . . . . Largest Group . | . . . . Highest-Rated Group . | . . . . Highest-Rated Ally . | . . . . Total Orders . | . . . . Ally Attacks . | . . . . Total Damage . | . . . . Kills . | . . . . Allies Corrupted . | . . . . Allies Melted . | . . . . Intel | -11 -10 -9 -9 ------- Run | Yrd Mat Mat Sto Active Infowar (turns) 86 | . . . 86 Machine Analysis 86 | . . . 86 Robot Analysis Total 1 | . 1 . . Derelict Logs Recovered . | . . . . Drone Launches . | . . . . Drone Recoveries . | . . . . Exploration | -11 -10 -9 -9 ------------- Run | Yrd Mat Mat Sto Turns Passed 1700 | 51 647 731 271 Spaces Moved 1151 | 37 437 518 159 Core 4 | 3 1 . . Treads 41 | . . . 41 Legs . | . . . . Wheels 1047 | 34 436 518 59 Hover . | . . . . Flight 59 | . . . 59 Fastest Speed 40 | 50 90 100 40 Average Speed 97 | 89 96 100 95 Slowest Speed 160 | 100 150 100 160 Overloaded Moves . | . . . . Propulsion Burnouts . | . . . . Robots Hopped 1 | . . . 1 Potential Cave-ins . | . . . . Cave-ins Triggered . | . . . . Exploration Rate (%) 31 | 3 54 43 25 Regions Visited 3 Branch Regions 1 Pre-discovered Areas . | . . . . Known Exits Taken 2 | . 1 1 . Unknown Exits Taken 1 | 1 . . . Scrap Searched . | . . . . Spaces Dug . | . . . . Terrain Destroyed 18 | . . 18 . Melee . | . . . . Projectile . | . . . . AOE 18 | . . 18 . Terrain Rammed . | . . . . Walls Destroyed . | . . . . Machines Disabled . | . . . . Actions | -11 -10 -9 -9 --------- Run | Yrd Mat Mat Sto Total 1505 | 51 562 654 238 Wait 141 | 3 36 62 40 Move 1146 | 36 436 517 157 Hop 1 | . . . 1 Pick Up 32 | 6 11 9 6 Fast Attach 19 | 6 7 5 1 Attach 16 | . 7 3 6 Detach . | . . . . Swap 9 | . 2 6 1 Drop 17 | . 4 9 4 Fire 123 | . 58 43 22 Melee . | . . . . Ram 1 | . 1 . . Kick . | . . . . Crush . | . . . . Escape Stasis . | . . . . Rewire . | . . . . Trap . | . . . . Miscellaneous . | . . . . Route ------- -11/Scrapyard -10/Materials (discovered 2 exits: *Mat / [*Min]) -9/Materials (discovered 2 exits: *Sto x2) -9/Storage History --------- Turn | Location | Event 17 | -11/Scrapyard | Discovered new exit (range 15) 52 | -11/Scrapyard | Entered Materials 206 | -10/Materials | Discovered new exit (range 15) 279 | -10/Materials | Core integrity fell below 50% 305 | -10/Materials | Lost 3 parts (1p1n1w) 342 | -10/Materials | Build established: Mutant 403 | -10/Materials | Discovered new exit (range 6) 698 | -10/Materials | Identified exit to Materials 699 | -10/Materials | Entered another Materials area 699 | -9/Materials | Evolved 2 slots: Propulsion x2 932 | -9/Materials | Lost 3 parts (1p1n1w) 1119 | -9/Materials | Discovered new exit (range 4) 1122 | -9/Materials | Identified exit to Storage 1377 | -9/Materials | Discovered exit to Storage (range 6) 1430 | -9/Materials | Entered Storage 1493 | -9/Storage | Core integrity fell below 50% 1526 | -9/Storage | Lost 3 parts (3n) 1540 | -9/Storage | Core integrity fell below 20% 1701 | -9/Storage | Destroyed by G-34 Mercenary with Small Laser Last Messages --------------- 01610_ Acquired Lgt. Treads. 01616_ Acquired ECM Suite. 01617_ R-06 Scavenger inserts Lgt. Treads into recycling unit. 01623_ R-06 Scavenger inserts Lgt. Armor Plating into recycling unit. 01626_ R-06 Scavenger inserts Lgt. Treads into recycling unit. 01644_ >> Machine Analyzer network decryption results: 01644_ Terminal x2 01655_ System corrupted: Heat flow error (+136). 01658_ Connecting with Terminal... 01658_ ALERT: Suspicious activity at Terminal S012. Dispatching Investigation squad. 01683_ K-01 Serf collects debris. 01687_ K-01 Serf cleans the Transfer Shaft. 01693_ K-01 Serf collects debris. 01699_ Flight Unit destroyed. 01700_ G-47 Trooper destroyed. Map ----- +----------------------------------------------------+ | ?????????????????????????????????????????????????? | | ?????????????????????????????????????????????????? | | ?????????????????????????????????????????????????? | | ?????????????????????????????????????????????????? | | ?????????????????????????????????????????????????? | | ?????????????????????????????????????????????????? | | ?????????????????????????????????????????????????? | | ?????????????????????????????????????????????????? | | ?????????????????????????????????????????????????? | | ?????????????????????????????????????????????????? | | ?????????????????????????????????????????????????? | | ?????????????????????????????????????????????????? | | ???????????????????????????##????????????????????? | | ???????????????????########T###########??????????? | | ?????????########### ???????? | | ?????????# ## ???????? | | ?????????# """ ## ???????? | | ???????### """ ## ##################????????? | | ??????#""" """ ## #?????????????????????????? | | ???????"R ! ## #?????????????????????????? | | ????????"" """ # #???###???????????????????? | | ????????## """ ## ##### ######??????????????? | | ?????????# """ ## ## k###????????????? | | ?????????# ## ## [[""#????????????? | | ?????#########+#### # """ """ Y"#????????????? | | ?????# #@""" """]""#????????????? | | ?????# *g%""" """ ###????????????? | | ?????# # #??????????????? | | ?????# %#####+#### # #??????????????? | | ?????# ##? ?####### #??????????????? | | ?????# %%"# ][[ #?????###########??????????????? | | ?????# "# ][ #??????????????????????????????? | | ?????# "# ][ #??????????????????????????????? | | ?????# T# #??????????????????????????????? | | ?????# "# """#??????????????????????????????? | | ?????# "# """#??????????????????????????????? | | ?????# "# """#??????????????????????????????? | | ?????# ## """???????????????????????????????? | | ?????# !## "?????????????????????????????????? | | ?????# ! ## ??????????????????????????????????? | | ?????# [!##### ??????????????????????????????????? | | ?????# #????#??????????????????????????????????? | | ?????# #???????????????????????????????????????? | | ?????# !####????????????????????????????????????? | | ?????# !%" #????????????????????????????????????? | | ?????# G"#????????????????????????????????????? | | ?????# "" #????????????????????????????????????? | | ?????# ####????????????????????????????????????? | | ?????# #???????????????????????????????????????? | | ?????# #???????????????????????????????????????? | +----------------------------------------------------+ Best States ------------- Heat Dissipation 28 Energy Generation 10 Energy Capacity 250 Matter Stores 300 Matter Capacity 300 Sight Range 16 Terrain Scan Density 10 Propulsion Shielding 33 Evasion (%) 62 Recoil Reduction 1 Item Schematics ----------------- None Robot Schematics ------------------ None Fabricated ------------ Nothing Repaired ---------- Nothing Studied --------- None Alien Tech Used ----------------- None Achievements -------------- None Challenges ------------ None Game ------ Seed SpectralDamperTearclaws Manual? 0 Play Time 00:36:04 Cumulative 37.2 hours Start 2026.04.15 @ 22:05:09 End 2026.04.15 @ 22:40:39 Sessions 1 Manual Loads 0 Difficulty Rogue Special Mode None Game No. 27 Rogue 27 Adventurer 0 Explorer 0 Win Type - Total 0 Types 0/0/0/0/0/0/0/0/0/0 Lore% 13 Gallery% 20 Achievement% 16 Wizard Run 0 Options --------- Layout 1 ASCII 0 Keyboard 1 Movement Numpad Keybinds 0 Fullscreen 1 Font 16/Terminus Map View 50x40 Zoom Use 0% Tactical HUD 1 Map Filters NONE Filters NONE Steam SD RUN: 0277b11c-4dbd-477f-be12-667b07bb69c1